[Event "Oceania Zonal Open 2023"]
[Site "Melbourne"]
[Date "2023.01.24"]
[Round "3.9"]
[White "Deng, Jimmy"]
[Black "Urban, Sylvester"]
[Result "0-1"]
[ECO "B52"]
[WhiteElo "1879"]
[BlackElo "2117"]
[Annotator "TA"]
[PlyCount "198"]
[EventDate "2023.01.09"]
[EventType "swiss"]
[EventCountry "AUS"]
[SourceTitle "playchess.com"]
[Source "ChessBase"]
[SourceQuality "1"]
[TimeControl "5400+30"]

{[%evp 12,198,30,16,24,10,20,5,0,-18,0,0,15,11,16,6,6,-15,-16,-50,-34,-52,-16,-46,0,-10,14,5,46,11,10,-1,37,6,69,0,55,-100,-102,-128,-135,-145,-129,-173,-131,-131,-135,-125,-72,-310,-313,-423,-430,-385,-419,-402,-404,-1927,-582,-1594,-846,-895,-848,-2576,-901,-858,0,-2252,-1838,-2187,-1493,-1518,-1508,-1447,-1474,-1463,-1493,-785,-713,-1462,-1366,-1201,-1094,-745,-128,-128,-128,-128,-128,-128,-80,-80,-1,-1,-1,-1,-1,-1,-1,-1,-1,-1,-1,-29946,-29950,-29942,-29952,-29947,-1,-1,0,-29945,0,0,0,-29938,-12744,-9843,-6641,-4182,-1,-1,0,0,0,0,0,-1,-1,-1,-1,-1,0,-1,-1,-1,-1,-1,-1,-1,0,0,0,0,0,0,0,-8,-8,-8,-8,-8,-8,-86,-93,-29969,-29970,-29972,-29970,-29969,-29970,-29971,-12298,-29970,-29971,-29973,-29974,-29975,-29976,-29976,-29977,-29975,-29976,-29976,-29977,-29980,-29976,-29976,0,-29979,-29978,-29978,-29979,-29982,-29983,-29983,-29981,-29984,-29985]} 1. e4 {[%emt 0:00:02]} c5 {[%emt 0:00:08]} 2. Nf3 {[%emt 0:00:05]} d6 {[%emt 0:00:18]} 3. Bb5+ {[%emt 0:00:06]} Bd7 {[%emt 0:00:09]} 4. Bxd7+ {[%emt 0:00:06]} Nxd7 {[%emt 0:00:16]} 5. O-O {[%emt 0:00:07]} Ngf6 {[%emt 0:01:01]} 6. Qe2 {[%emt 0:00:23]} e6 {[%emt 0:00:30]} 7. c3 {[%emt 0:00:53]} Be7 {[%emt 0:00:10] B52: Sicilian: Moscow Variation with 3...Bd7.} 8. d3 {[%emt 0:00:34]} O-O {[%emt 0:02:52]} 9. Nbd2 {[%emt 0:02:12] [#]} b5 $146 {[%emt 0:03:05] The position is equal.} ({Predecessor:} 9... Rc8 10. Rd1 Qc7 11. Nf1 a6 12. Ng3 b5 13. h4 b4 14. h5 h6 15. Bd2 a5 {0-1 Karaoglan,K (1606)-Kuruppu,S (1541) World School-ch U11 6th 2010 (4)}) 10. c4 {[%emt 0:03:28]} bxc4 {[%emt 0:06:55]} 11. dxc4 {[%emt 0:00:27]} e5 {[%emt 0:03:26]} 12. Ne1 {[%emt 0:06:37]} Nb8 {[%emt 0:01:31]} 13. Nc2 {[%emt 0:01:38]} Nc6 {[%emt 0:01:23]} 14. b3 {[%emt 0:02:46]} Nd4 {[%emt 0:07:11]} 15. Nxd4 {[%emt 0:02:46]} exd4 {[%emt 0:04:58]} 16. f4 {[%emt 0:04:19]} Qd7 {[%emt 0:08:04]} 17. h3 {[%emt 0:06:07][%cal Ob3b4]} Ne8 {[%emt 0:04:29]} (17... Rab8 $15) 18. Nf3 {[%emt 0:16:06][%cal Ob3b4]} Rb8 {[%emt 0:05:28]} 19. Bd2 {[%emt 0:03:55]} Bd8 {[%emt 0:07:00]} 20. g4 {[%emt 0:06:26]} a5 {[%emt 0:00:30]} 21. Qd3 {[%emt 0:02:30]} a4 {[%emt 0:01:44]} 22. Rab1 {[%emt 0:05:38]} Qa7 {[%emt 0:11:35]} (22... axb3 $11 23. axb3 Ra8) 23. Kg2 {[%emt 0:03:46]} ({White should try} 23. b4 $14) 23... Ba5 {[%emt 0:01:45]} (23... Nf6 $11) 24. Ng5 $2 {[%emt 0:07:25]} (24. bxa4 Rxb1 25. Qxb1 (25. Rxb1 Bxd2 26. Nxd2 Qxa4 $17) 25... Bxd2 26. Nxd2 Qxa4 $17) (24. b4 $1 $14 {keeps the upper hand.} Bc7 25. Kg1) 24... Bxd2 $17 {[%emt 0:00:24]} 25. Qxd2 {[%emt 0:00:04]} Nf6 {[%emt 0:03:05]} 26. Qd3 {[%emt 0:03:43]} h6 {[%emt 0:05:39]} 27. e5 {[%emt 0:01:54]} dxe5 {[%emt 0:00:41]} 28. fxe5 {[%emt 0:00:51]} hxg5 {[%emt 0:00:41]} 29. exf6 {[%emt 0:00:10]} axb3 {[%emt 0:03:13]} (29... Rfe8 $142 30. Qf5 Qb7+ 31. Qd5 Qxd5+ 32. cxd5 Rbd8) 30. axb3 $2 {[%emt 0:00:27]} (30. Qf5 $17 Qxa2+ 31. Rf2 Qa8+ 32. Kg3) 30... Rfe8 $1 $19 {[%emt 0:05:11]} 31. Qf5 {[%emt 0:03:24]} Re2+ {[%emt 0:00:58]} 32. Rf2 {[%emt 0:01:58]} Rxf2+ {[%emt 0:03:13]} 33. Qxf2 {[%emt 0:00:08]} gxf6 {[%emt 0:00:33][%mdl 4096] Endgame KQR-KQR} 34. Rf1 {[%emt 0:03:47]} (34. Rb2 $142 Qa3 35. Re2) 34... Rb6 {[%emt 0:01:42]} (34... Rxb3 $142 {( -> ...Qb7+)} 35. Qxf6 Qb7+ 36. Rf3 Qxf3+ 37. Qxf3 Rxf3 38. Kxf3 Kg7) 35. Qf5 {[%emt 0:10:19]} Re6 {[%emt 0:02:35]} 36. Rf2 {[%emt 0:00:00] Prevents Qa2} Qb7+ {[%emt 0:00:31]} 37. Kh2 {[%emt 0:01:08]} Qb8+ {[%emt 0:00:46]} (37... Qxb3 $142 38. Kg2 Qxc4) 38. Kg2 {[%emt 0:00:41]} Qb7+ {[%emt 0:03:14]} (38... Qxb3 $142 39. Qxc5 Qc3) 39. Kh2 $1 {[%emt 0:00:33]} Qxb3 {[%emt 0:00:07]} 40. Qxc5 {[%emt 0:00:29]} Qe3 {[%emt 0:00:31]} 41. Kg2 {[%emt 0:01:23]} Qe4+ {[%emt 0:00:12]} 42. Kg1 {[%emt 0:00:21]} d3 {[%emt 0:00:14]} 43. Qd5 {[%emt 0:00:41]} Qxd5 {[%emt 0:01:29]} 44. cxd5 {[%emt 0:00:04] KR-KR} Rd6 {[%emt 0:00:06]} 45. Rd2 {[%emt 0:00:07]} Rxd5 {[%emt 0:00:05]} 46. Kf2 {[%emt 0:00:08]} f5 {[%emt 0:01:27]} 47. gxf5 {[%emt 0:01:00]} Rxf5+ $2 {[%emt 0:00:01]} (47... Kg7 $19 {is more deadly.} 48. Kf3 Kf6) 48. Ke3 $17 {[%emt 0:00:21]} Re5+ {[%emt 0:01:12]} 49. Kf3 {[%emt 0:00:39]} Rd5 {[%emt 0:00:14]} 50. Ke4 {[%emt 0:00:27][%csl LRd3,LRd5]} Rd6 {[%emt 0:00:27]} ({Black should play} 50... Rb5 {White must now prevent ...f5+.} 51. Rxd3 f5+ 52. Kf3 Kf7) 51. Ke5 {[%emt 0:00:38]} Rd8 {[%emt 0:01:46]} ({Better is} 51... Rb6 $17 {Hoping for ...f6+.} 52. Rxd3 Kg7) 52. Kf5 $11 {[%emt 0:01:14]} Kg7 {[%emt 0:00:41] And now ...Kh6 would win.} 53. Kxg5 {[%emt 0:00:09]} Rd4 {[%emt 0:00:22] ...f6+ would be deadly.} 54. Kf5 {[%emt 0:01:13]} f6 {[%emt 0:01:00]} (54... Kh6 $5) 55. h4 $1 {[%emt 0:00:35]} Kf7 {[%emt 0:00:18][%cal Of7e7] Strongly threatening ...Ke7!} (55... Rxh4 {simplifies} 56. Rxd3 Rh5+ 57. Ke4 Kf7) 56. h5 {[%emt 0:00:27]} Rd5+ {[%emt 0:00:25]} 57. Kg4 $2 {[%emt 0:00:43][%mdl 8192]} (57. Ke4 $11 Rxh5 58. Rxd3) 57... Kg7 {[%emt 0:00:09]} 58. Kf4 {[%emt 0:00:34]} Kh6 {[%emt 0:00:08]} (58... Rxh5 59. Rxd3 Kg6 60. Rg3+ Kf7 61. Rf3 $11) 59. Ke4 {[%emt 0:00:28]} Re5+ $2 {[%emt 0:00:41]} ({Worse is} 59... Rxh5 60. Rxd3 Kg6 61. Kf4 $11) (59... Rd8 60. Kf5 Rd6 61. Ke4 Kxh5 62. Kf4 Kg6 63. Ke3 Kf7 64. Kf2 Ke6 65. Ke1 Ke5 66. Rh2 d2+ 67. Kd1 f5 68. Re2+ Kf4 69. Rg2 Ke4 70. Rh2 f4 71. Rh4 Rd5 72. Rh6 f3 73. Rh8 Kf4 74. Rf8+ Kg3 75. Rf6 f2 76. Rf7 Kg2 77. Rg7+ Kf3 78. Rf7+ Ke3 79. Rf8 Rb5 80. Re8+ Kf4 81. Kxd2 f1=Q 82. Rf8+ Rf5 83. Rxf5+ Kxf5 84. Kc3 Ke4 85. Kc2 Qb5 86. Kc3 Ke3 87. Kc2 Qb4 88. Kc1 Kd3 89. Kd1 Qd2#) 60. Kf4 $1 {[%emt 0:00:17]} Rd5 $2 {[%emt 0:00:16][%mdl 8192]} (60... Rxh5 $11 61. Rxd3 Kg6) 61. Ke4 $1 {[%emt 0:00:06][%csl LRd3,LRd5]} Rd6 $2 {[%emt 0:00:11]} ({Not} 61... Rxh5 62. Rxd3 Kg6 63. Kf4 $11) (61... Rd7 62. Kf5 Rd6 63. Kf4 Kxh5 64. Rh2+ Kg6 65. Rd2 f5 66. Ke3 Rd5 67. Kf4 Rd8 68. Kg3 Kf6 69. Kh4 Ke5 70. Kg3 Rd4 71. Kh3 Ke4 72. Rd1 d2 73. Kh4 Ke3+ 74. Kh5 f4 75. Kh6 f3 76. Kg7 Ke2 77. Ra1 d1=Q 78. Ra2+ Rd2 79. Ra6 Rd7+ 80. Kf6 Rd6+ 81. Rxd6 Qxd6+ 82. Kf5 f2 83. Ke4 Qd7 84. Kf4 f1=Q+ 85. Kg5 Qff5+ 86. Kh6 Qdh7#) 62. Kf5 $1 {[%emt 0:00:22]} Kg7 {[%emt 0:01:17]} (62... Kxh5 $2 63. Rh2#) 63. Rg2+ $2 {[%emt 0:00:36][%mdl 8192]} (63. Ke4 $11) 63... Kf7 {[%emt 0:00:25]} ({Stronger than} 63... Kh6 64. Rd2 Rd8 65. Kxf6 $11) (63... Kh7 $142 64. Rd2 Kh6 65. Kf4 Kxh5 66. Rh2+ Kg6 67. Rg2+ Kf7 68. Rd2 Ke6 69. Ke4 f5+ 70. Kf4 Rd5 71. Kg3 Ke5 72. Kg2 Ke4 73. Kf2 f4 74. Kf1 Rh5 75. Rb2 f3 76. Rb8 Ke3 77. Re8+ Kd4 78. Kf2 d2 79. Rd8+ Rd5 80. Rh8 d1=Q 81. Rh4+ Kd3 82. Rg4 Qe2+ 83. Kg3 f2 84. Kh4 Qf3 85. Rd4+ Rxd4+ 86. Kg5 Rg4+ 87. Kh6 Qh3#) 64. Rd2 $19 {[%emt 0:00:48]} Rd4 $1 {[%emt 0:00:13]} 65. h6 {[%emt 0:00:17]} Rd8 $2 {[%emt 0:00:27]} (65... Rd6 $1 $19 66. h7 Kg7) 66. h7 $132 {[%emt 0:00:49][%cal Od2d3][%mdl 2048] Threatens to win with Rxd3! White puts up resistance} Rd5+ {[%emt 0:01:14]} (66... Kg7 {simplifies} 67. h8=R Rxh8 68. Rxd3 Rh5+) 67. Ke4 {[%emt 0:00:14]} Rh5 {[%emt 0:00:46]} 68. Rxd3 {[%emt 0:00:24]} Ke6 {[%emt 0:00:24]} 69. Kf4 {[%emt 0:01:22]} Rh4+ {[%emt 0:00:06]} 70. Kg3 {[%emt 0:00:30]} Rxh7 {[%emt 0:00:02]} 71. Rb3 {[%emt 0:00:33]} Kf5 {[%emt 0:00:14]} 72. Rf3+ {[%emt 0:00:28]} Kg5 {[%emt 0:00:11]} 73. Rb3 {[%emt 0:00:23]} Rd7 {[%emt 0:00:26]} 74. Rc3 {[%emt 0:00:35]} Rd4 {[%emt 0:00:22]} 75. Kf3 {[%emt 0:00:26]} f5 {[%emt 0:00:15]} 76. Rb3 {[%emt 0:00:31]} Rh4 {[%emt 0:00:08]} 77. Kg2 {[%emt 0:00:31] Prevents Rh3.} Kg4 {[%emt 0:00:42]} 78. Ra3 {[%emt 0:00:28]} Rh6 {[%emt 0:00:15]} 79. Ra7 {[%emt 0:00:36]} Rc6 {[%emt 0:00:08]} 80. Rg7+ {[%emt 0:00:28]} Kf4 {[%emt 0:00:00]} 81. Re7 {[%emt 0:00:25]} Rc2+ {[%emt 0:00:10]} 82. Kf1 {[%emt 0:00:39]} (82. Kh3 $11) 82... Kf3 $17 {[%emt 0:00:10] Black converts the advantage convincingly.} 83. Ke1 $2 {[%emt 0:00:17][%mdl 8192]} (83. Kg1 $17) 83... f4 {[%emt 0:01:31]} 84. Kd1 {[%emt 0:00:42]} Rc5 {[%emt 0:00:12]} 85. Ke1 {[%emt 0:00:19]} Rc1+ {[%emt 0:00:17]} 86. Kd2 {[%emt 0:00:06]} Ra1 {[%emt 0:00:32]} (86... Rf1 $142 87. Rf7 Kg2 88. Rh7 f3 89. Rh8 Rg1 90. Ke3 Re1+ 91. Kf4 f2 92. Rg8+ Kh2 93. Rh8+ Kg1 94. Rg8+ Kf1 95. Rd8 Re7 96. Ra8 Rf7+ 97. Ke5 Kg1 98. Ra1+ f1=Q 99. Rxf1+ Rxf1 100. Ke4 Rd1 101. Ke5 Kf2 102. Ke4 Rd8 103. Kf5 Kf3 104. Ke6 Kf4 105. Ke7 Rd2 106. Ke6 Rd4 107. Kf7 Re4 108. Kg6 Re6+ 109. Kh7 Kg5 110. Kg7 Re7+ 111. Kf8 Kf6 112. Kg8 Re8+ 113. Kh7 Rc8 114. Kh6 Rh8#) 87. Rf7 $19 {[%emt 0:00:57]} Rf1 $1 {[%emt 0:01:23]} 88. Rg7 {[%emt 0:00:32] [#]} Kf2 $1 {[%emt 0:00:20]} 89. Rf7 {[%emt 0:00:26] [#]} f3 $1 {[%emt 0:00:05]} 90. Rf8 {[%emt 0:00:46]} Rh1 {[%emt 0:00:53]} 91. Kd3 {[%emt 0:00:22]} Rh7 {[%emt 0:00:40]} 92. Rf5 {[%emt 0:00:32]} Rd7+ {[%emt 0:00:08]} 93. Ke4 {[%emt 0:00:26]} Re7+ {[%emt 0:00:04]} 94. Kd3 {[%emt 0:00:29]} Rd7+ $2 {[%emt 0:01:07]} (94... Kg2 {mates} 95. Kd2 f2 96. Rg5+ Kf3 97. Rf5+ Kg3 98. Rg5+ Kf4 99. Rg8 Re1 100. Rf8+ Kg3 101. Rg8+ Kf4 102. Rf8+ Kg3 103. Rg8+ Kh4 104. Rh8+ Kg5 105. Rg8+ Kh6 106. Rh8+ Kg5 107. Rg8+ Kh6 108. Rf8 f1=Q 109. Rxf1 Rxf1 110. Ke3 Rd1 111. Ke4 Kg5 112. Ke5 Rd8 113. Ke6 Kf4 114. Ke7 Rd5 115. Ke6 Rd3 116. Kf6 Re3 117. Kg6 Re6+ 118. Kh7 Kg5 119. Kg7 Re7+ 120. Kf8 Kf6 121. Kg8 Re8+ 122. Kh7 Ra8 123. Kh6 Rh8#) 95. Kc2 $2 {[%emt 0:00:36][%mdl 8192]} (95. Ke4 $11) 95... Kg2 {[%emt 0:00:10] Black mates.} 96. Rg5+ {[%emt 0:00:06]} Kf1 {[%emt 0:00:04]} 97. Rg3 {[%emt 0:00:49]} Ke2 {[%emt 0:00:58]} 98. Rg8 {[%emt 0:00:22]} Rc7+ {[%emt 0:00:48]} 99. Kb2 {[%emt 0:00:22]} Re7 {[%emt 0:00:04] Weighted Error Value: White=0.80/Black=0.84} 0-1

[Event "Oceania Zonal Open 2023"]
[Site "Melbourne"]
[Date "2023.01.24"]
[Round "3.10"]
[White "Anderson, Brendan"]
[Black "Renjith, Sravan"]
[Result "1-0"]
[ECO "D34"]
[WhiteElo "1926"]
[BlackElo "2172"]
[Annotator "TA"]
[PlyCount "55"]
[EventDate "2023.01.09"]
[EventType "swiss"]
[EventCountry "AUS"]
[SourceTitle "playchess.com"]
[Source "ChessBase"]
[SourceQuality "1"]
[TimeControl "5400+30"]

{[%evp 26,55,23,26,25,29,33,11,31,10,30,3,109,109,116,104,118,8,78,39,80,85,108,112,638,643,687,690,743,715,693,604]} 1. d4 {[%emt 0:00:02]} d5 {[%emt 0:00:07]} 2. c4 {[%emt 0:00:06]} e6 {[%emt 0:00:05]} 3. Nc3 {[%emt 0:00:05]} c5 {[%emt 0:00:07]} 4. cxd5 {[%emt 0:00:17]} exd5 {[%emt 0:00:11]} 5. Nf3 {[%emt 0:00:09]} Nc6 {[%emt 0:00:11]} 6. g3 {[%emt 0:01:06]} Nf6 {[%emt 0:00:49]} 7. Bg2 {[%emt 0:00:10]} Be7 {[%emt 0:00:09]} 8. O-O {[%emt 0:00:27]} O-O {[%emt 0:00:19]} 9. dxc5 {[%emt 0:01:16]} Bxc5 {[%emt 0:00:11]} 10. Bg5 {[%emt 0:00:05]} d4 {[%emt 0:00:31]} 11. Bxf6 {[%emt 0:02:54]} Qxf6 {[%emt 0:00:44]} 12. Ne4 {[%emt 0:00:10]} Qe7 {[%emt 0:00:08]} 13. Nxc5 {[%emt 0:00:07]} Qxc5 {[%emt 0:00:12]} 14. Qd2 {[%emt 0:01:51]} Be6 {[%emt 0:05:11] [#] D34: Tarrasch Defence: 6 g3 Nf6 7 Bg2 Be7.} 15. b4 $1 {[%emt 0:09:05] [#]} Qb6 $146 {[%emt 0:01:01]} ({Predecessor:} 15... Qxb4 16. Qxb4 Nxb4 17. Nxd4 Bxa2 18. Bxb7 Rab8 19. Bf3 a6 20. Rfc1 Rb6 21. Rc7 Bd5 22. Bxd5 Nxd5 {½-½ Delaunay,S (2356)-Rainfray,A (2416) FRA-chT2 0304 2003 (9)}) 16. Rab1 {[%emt 0:02:33][%cal Ba1b1,Bb1b5,Bb5c5][%mdl 32]} Rfd8 {[%emt 0:03:32][%cal Od4d3] The position is equal.} (16... Bf5 $5 {[%cal Rf5b1]}) 17. Rfd1 {[%emt 0:03:48]} a6 {[%emt 0:03:02]} (17... Bf5 $5 {[%cal Rf5b1]}) 18. a4 {[%emt 0:03:48]} (18. Ng5 {is more complex.} Bf5 19. Nxf7 Rf8 20. Ng5) 18... Rac8 {[%emt 0:02:53]} (18... Bf5 $11) 19. b5 $36 {[%emt 0:03:27][%mdl 2048] Black is under strong pressure.} axb5 {[%emt 0:00:53]} 20. Rxb5 {[%emt 0:00:14]} (20. axb5 $6 Na5 $11) 20... Qa6 {[%emt 0:01:49] [#]} 21. Qb2 {[%emt 0:05:57]} (21. Ng5 $1 $16) 21... Rc7 {[%emt 0:13:52]} (21... Qxa4 $11 {remains equal.} 22. Ra1 Qc4) 22. Rb1 {[%emt 0:08:30][%cal Rb5b7]} (22. Nxd4 $2 {too greedy.} Qxa4 23. Ra1 Qxd4 $19) 22... Bc8 {[%emt 0:17:49] [#]} 23. Rc5 $1 {[%emt 0:08:47][%cal Of3d4]} d3 {[%emt 0:20:33]} 24. exd3 {[%emt 0:00:18] Black must now prevent Ne5.} ({Much weaker is} 24. Rg5 $6 g6 25. exd3 Bf5 $11) 24... Qxa4 $2 {[%emt 0:06:32][%mdl 8192] This move loses the game for Black.} (24... Be6 $16) 25. Ra1 $18 {[%emt 0:02:41] White is clearly winning.} ({Inferior is} 25. Rg5 g6 $11) 25... Qg4 {[%emt 0:01:44]} 26. Rg5 {[%emt 0:00:15][%csl Gg5][%cal Rb2g7]} f6 {[%emt 0:01:01]} 27. Rxg4 {[%emt 0:00:18]} Bxg4 {[%emt 0:00:01]} 28. h3 {[%emt 0:00:44] Weighted Error Value: White=0.21 (precise) /Black=0.77} 1-0

[Event "Oceania Zonal Open 2023"]
[Site "Melbourne"]
[Date "2023.01.24"]
[Round "3.10"]
[White "Odenthal, Aidan"]
[Black "Clarke, Matthew"]
[Result "0-1"]
[ECO "D36"]
[WhiteElo "1871"]
[BlackElo "2104"]
[Annotator "TA"]
[PlyCount "62"]
[EventDate "2023.01.09"]
[EventType "swiss"]
[EventCountry "AUS"]
[SourceTitle "playchess.com"]
[Source "ChessBase"]
[SourceQuality "1"]
[TimeControl "5400+30"]

{[%evp 28,62,22,0,14,-6,46,10,25,0,0,5,34,0,0,0,0,0,0,-25,-20,-43,-39,-162,-166,-152,-146,-143,-164,-171,-168,-172,-148,-835,-764,-29986,-29987]} 1. d4 {[%emt 0:00:06]} Nf6 {[%emt 0:00:14]} 2. c4 {[%emt 0:00:20]} e6 {[%emt 0:00:17]} 3. Nf3 {[%emt 0:01:12]} d5 {[%emt 0:00:28]} 4. cxd5 {[%emt 0:01:52]} exd5 {[%emt 0:00:23]} 5. Bg5 {[%emt 0:01:15]} Be7 {[%emt 0:01:35]} 6. Nc3 {[%emt 0:00:21]} h6 {[%emt 0:02:30]} 7. Bh4 {[%emt 0:01:52]} c6 {[%emt 0:04:19]} 8. Qc2 {[%emt 0:01:39]} O-O {[%emt 0:01:32]} 9. e3 {[%emt 0:01:32]} Nbd7 {[%emt 0:03:02]} 10. Bd3 {[%emt 0:02:16]} Re8 {[%emt 0:05:34]} 11. O-O {[%emt 0:01:34]} Ne4 {[%emt 0:03:22]} 12. Bxe7 {[%emt 0:02:20]} Qxe7 {[%emt 0:00:26]} 13. Bxe4 {[%emt 0:00:29]} dxe4 {[%emt 0:00:28]} 14. Nd2 {[%emt 0:00:30]} Nf6 {[%emt 0:01:32]} 15. Rab1 {[%emt 0:06:46]} Bf5 $1 {[%emt 0:04:16] The main line 15...Bf5 scores better than 15...b6. D36: Queen's Gambit Declined: Exchange Variation: Main line (5 Bg5 c6 6 Qc2).} (15... b6 $5 {[%cal Rc8a6]}) 16. b4 {[%emt 0:03:04][%cal Bb2b4,Bb4b5][%mdl 32] [#]} g5 $146 {[%emt 0:08:26]} ({Black should play} 16... Nd5 $11) ({Predecessor:} 16... Nd5 17. Qb2 Qg5 18. Kh1 Re6 19. b5 Rg6 20. Rg1 Nf6 21. bxc6 bxc6 22. Qb7 Re8 {½-½ Harutyunian,T (2524)-Nisipeanu,L (2644) Abu Dhabi Masters 28th 2022 (7)}) 17. b5 {[%emt 0:04:28] White wants to play bxc6.} c5 {[%emt 0:04:14] Strongly threatening ...cxd4. The position is equal.} 18. dxc5 {[%emt 0:05:58]} Qxc5 {[%emt 0:00:51]} 19. Qb2 {[%emt 0:01:54]} Rad8 {[%emt 0:13:01]} 20. Nb3 {[%emt 0:12:56]} Qe7 {[%emt 0:06:44]} 21. Ne2 {[%emt 0:04:53][%cal Ob5b6]} Ng4 {[%emt 0:01:59]} 22. Ng3 {[%emt 0:02:12]} Bg6 {[%emt 0:03:46]} 23. Nd4 {[%emt 0:01:04]} Ne5 {[%emt 0:02:19]} 24. Qb3 {[%emt 0:04:19]} h5 {[%emt 0:01:57][%cal Bh6h5,Bh5h4][%mdl 32]} 25. Rfd1 {[%emt 0:09:51]} (25. Nge2 $15) 25... h4 $19 {[%emt 0:04:34]} 26. Nge2 {[%emt 0:03:22] [#]} h3 $1 {[%emt 0:00:53][%mdl 512] Black is more active.} 27. Ng3 {[%emt 0:03:17]} hxg2 {[%emt 0:01:20]} 28. Kxg2 {[%emt 0:00:53]} Qf6 {[%emt 0:01:27]} 29. Rbc1 {[%emt 0:01:56]} Nd3 {[%emt 0:01:45]} ({And not} 29... Rxd4 30. Rxd4 Qf3+ 31. Kg1 $11) 30. Rc2 $2 {[%emt 0:00:26][%mdl 8192]} (30. Rf1 $17) 30... Rxd4 $1 {[%emt 0:01:05][%mdl 64] [#] Remove Defender} 31. exd4 {[%emt 0:00:29]} Qf3+ {[%emt 0:01:14] Weighted Error Value: White=0.91/Black=0.11 (very precise)} 0-1

[Event "Oceania Zonal Open 2023"]
[Site "Melbourne"]
[Date "2023.01.24"]
[Round "3.11"]
[White "Nemeth, John"]
[Black "Lee, Lachlan"]
[Result "1-0"]
[ECO "A38"]
[WhiteElo "2157"]
[BlackElo "1910"]
[Annotator "TA"]
[PlyCount "105"]
[EventDate "2023.01.09"]
[EventType "swiss"]
[EventCountry "AUS"]
[SourceTitle "playchess.com"]
[Source "ChessBase"]
[SourceQuality "1"]
[TimeControl "5400+30"]

{[%evp 18,105,37,32,43,26,53,6,44,15,63,59,62,61,56,59,49,63,180,161,177,117,117,119,114,121,153,163,218,177,189,190,175,150,226,110,147,155,240,202,186,177,170,107,188,175,202,139,193,100,177,122,152,106,93,101,455,327,533,536,518,510,566,563,550,532,590,576,578,572,531,504,883,883,876,876,869,862,854,844,816,840,806,576,833,792,770,693,29984,29985]} 1. Nf3 {[%emt 0:00:15]} Nf6 {[%emt 0:00:18]} 2. g3 {[%emt 0:00:08]} c5 {[%emt 0:01:03]} 3. Bg2 {[%emt 0:00:13]} Nc6 {[%emt 0:00:57]} 4. c4 {[%emt 0:00:23]} g6 {[%emt 0:00:52]} 5. O-O {[%emt 0:01:34]} Bg7 {[%emt 0:01:02]} 6. d4 {[%emt 0:01:12]} cxd4 {[%emt 0:00:30]} 7. Nxd4 {[%emt 0:00:07]} O-O {[%emt 0:01:21]} 8. Nc3 {[%emt 0:00:10]} a6 {[%emt 0:03:50] 8...Qa5 is becoming the main line.} 9. Nc2 {[%emt 0:03:26]} d6 {[%emt 0:01:47]} 10. b3 {[%emt 0:00:25]} Be6 {[%emt 0:17:40] A38: Symmetrical English vs ...g6: 4 Bg2 Bg7 5 Nf3 Nf6.} 11. Bb2 {[%emt 0:06:17]} Rb8 {[%emt 0:03:55] [#]} 12. Qd2 $146 {[%emt 0:03:40]} (12. Rb1 $14) ({Predecessor:} 12. Rc1 Qa5 13. Nd5 Bxd5 14. cxd5 Ne5 15. a3 Rfc8 16. Ne3 b5 17. b4 Qb6 18. Bxe5 dxe5 {1-0 Gaehwiler,G (2405)-Buscar,M (2088) Titled Tuesday intern op 04th Jan blitz 2022 (2)}) 12... Qd7 {[%emt 0:05:21] The position is equal.} 13. Rad1 {[%emt 0:09:15]} (13. Nd5 {feels hotter.} Nxd5 14. Bxg7 Ne3 15. Nxe3 Kxg7 16. Rad1) 13... Rfc8 {[%emt 0:11:11]} (13... b5 $11 {deserves consideration.}) 14. Nd5 $14 {[%emt 0:20:48]} Nxd5 {[%emt 0:16:47]} 15. Bxg7 {[%emt 0:00:58]} Nf4 {[%emt 0:02:04]} 16. Qxf4 {[%emt 0:01:19]} Kxg7 {[%emt 0:00:13]} 17. c5 {[%emt 0:07:11][%cal Bc4c5,Bc5d6][%mdl 32]} Nd8 {[%emt 0:02:56] [#]} ({Black should try} 17... d5 $14) 18. cxd6 $1 $18 {[%emt 0:00:35]} Nc6 {[%emt 0:12:30]} (18... a5 19. Nd4) 19. Nd4 {[%emt 0:06:49]} (19. Rd2 $18) 19... Nxd4 $16 {[%emt 0:04:07]} 20. Rxd4 {[%emt 0:00:35]} exd6 {[%emt 0:00:53]} 21. Rxd6 {[%emt 0:00:17]} Qb5 {[%emt 0:00:25]} 22. e4 $36 {[%emt 0:03:22][%mdl 2048] White has strong initiative. White is more active.} Qa5 {[%emt 0:03:40]} (22... g5 $142 23. Qd2 Qc5) 23. Rfd1 {[%emt 0:02:45][%cal Od6e6]} g5 {[%emt 0:05:10]} 24. Qe3 {[%emt 0:02:54] Strongly threatening Qd4+.} Qc5 {[%emt 0:02:32]} 25. Qe2 {[%emt 0:05:25][%cal Od6e6] aiming for Rxe6!} Qe5 {[%emt 0:00:34]} (25... Rc7 $16 26. e5 Re8) 26. Bf3 {[%emt 0:02:20]} (26. Qh5 $1 $18) 26... Re8 {[%emt 0:00:39]} 27. Bg4 {[%emt 0:00:51]} f5 {[%emt 0:00:59]} (27... Rbc8 $16 {is a better defense.} 28. h4 Rc5 29. Bxe6 Rxe6 30. Rxe6 Qxe6) 28. exf5 {[%emt 0:02:13]} Qxe2 {[%emt 0:00:27]} 29. Bxe2 {[%emt 0:00:01]} Bxf5 {[%emt 0:00:08]} 30. Bf3 {[%emt 0:00:26]} (30. R1d5 $18) 30... Re7 {[%emt 0:00:38]} (30... g4 $16) 31. g4 $18 {[%emt 0:01:06]} Bc2 {[%emt 0:00:55]} 32. Rc1 {[%emt 0:02:28]} Rc8 {[%emt 0:00:21]} (32... Rf8 $16 {was called for.}) 33. Kg2 {[%emt 0:00:59]} (33. Rb6 $18) 33... Rcc7 {[%emt 0:00:28]} (33... Rf7 $16) 34. Rb6 {[%emt 0:00:55]} (34. Rd2 $18 Be4 35. Rxc7 Bxf3+ 36. Kxf3 Rxc7 37. Kg3) 34... Rf7 {[%emt 0:00:15] [#]} 35. Rxb7 $1 {[%emt 0:01:31][%mdl 512]} Rxb7 $16 {[%emt 0:00:38]} 36. Bxb7 {[%emt 0:00:07][%mdl 4096] Endgame KRB-KRB} ({Of course not} 36. Rxc2 $6 Rbc7 37. Re2 Rfd7 $11) 36... Rc7 {[%emt 0:00:17][%mdl 8192] This move loses the game for Black.} (36... Bxb3 $16 {is tougher.} 37. Rc5 (37. Bxa6 Bd5+ 38. Kf1 Ra7 $16) 37... h6) 37. Bf3 {[%emt 0:00:26] Kg1 is the strong threat.} ({Worse is} 37. Bxa6 Be4+ 38. f3 Rxc1 39. fxe4 Rc2+ 40. Kg3 Rxa2 $19) 37... Rc3 $2 {[%emt 0:00:51]} (37... Rc8 38. b4 Rc4) 38. Kg1 $18 {[%emt 0:01:03]} Rxf3 {[%emt 0:00:23]} 39. Rxc2 {[%emt 0:00:05] KR-KR} Rf6 {[%emt 0:00:07]} 40. Rc5 {[%emt 0:00:36]} Kg6 {[%emt 0:00:27]} 41. Kg2 {[%emt 0:00:34]} h6 {[%emt 0:00:42]} 42. Ra5 {[%emt 0:00:36]} Kg7 {[%emt 0:00:43]} 43. Kg3 {[%emt 0:00:17]} Kg6 {[%emt 0:00:35]} 44. h4 {[%emt 0:00:33]} Rc6 {[%emt 0:00:43]} (44... gxh4+ $142 45. Kxh4 Kh7) 45. hxg5 {[%emt 0:00:28]} hxg5 {[%emt 0:00:06]} 46. b4 {[%emt 0:00:29]} Rb6 {[%emt 0:00:11]} 47. a3 {[%emt 0:00:02][%cal Ba2a3,Ba3a4,Ba4b5][%mdl 32]} Kf6 {[%emt 0:00:11]} 48. f3 {[%emt 0:01:21]} Kg6 {[%emt 0:00:51]} 49. Kf2 {[%emt 0:00:06]} Re6 {[%emt 0:01:09]} 50. a4 {[%emt 0:00:24]} Rb6 {[%emt 0:00:13]} 51. b5 {[%emt 0:00:05]} axb5 {[%emt 0:00:05]} 52. axb5 {[%emt 0:01:36] White threatens Ra6 and mate.} Kf6 {[%emt 0:00:48]} 53. Ra6 {[%emt 0:00:02] Weighted Error Value: White=0.26 (precise) /Black=0.50} 1-0